Cogmind - Beta 13 @@@ ROGUE MODE // 2024.04.10 @ 23:19:06 Player: Ragonath Result: Destroyed by P-60 Hacker with Shock Rifle Performance ------------- Evolutions (4) 2000 Regions Visited (10) 2000 Robots Destroyed (31) 155 Value Destroyed (1013) 1013 Prototype IDs (4) 80 Alien Tech Used (0) 0 Bonus (1526) 1526 TOTAL SCORE: 6774 Bonus ------- High Alert Combat Kills 196 Follower Combat Kills 255 Entered Garrisons 400 Used RIF Installer 500 Aligned with FarCom 300 Friendly Fire -125 Cogmind --------- Core Integrity 0/850 Matter 262/300 Energy 58/100 System Corruption 6% Temperature Cool (18) Movement Core (50) Location -6/Garrison Parts ------- > --- POWER (2) -------- (None) > --- PROPULSION (6) --- (None) > --- UTILITY (4) ------ (None) > --- WEAPON (3) ------- (None) > --- INVENTORY (5) ---- Microactuators Microactuators Peak State ------------ > --- POWER ------------ Light Angular Momentum Engine Light Angular Momentum Engine > --- PROPULSION ------- Cesium-ion Thruster Cesium-ion Thruster Cesium-ion Thruster Cesium-ion Thruster Xenon Bombardment Thruster Nuclear Pulse Thruster > --- UTILITY ---------- Improved Heat Sink Improved Heat Sink Improved Light Armor Plating Improved Hacking Suite > --- WEAPON ----------- AWS/Gauss Carbide Saw > --- INVENTORY -------- Microactuators Microactuators Blade Saw [Rating: 67] Favorites ----------- Power Light Angular Momentum Engine Engine Light Angular Momentum Engine Power Core Fission Core Propulsion Cesium-ion Thruster Leg Flexi-carbon Leg Wheel Wheel Hover Unit Gravmag System Flight Unit Cesium-ion Thruster Utility Improved Heat Sink Device Improved Heat Sink Storage Small Storage Unit Processor 0b10 Alert Chip Hackware Relay Coupler [Brawler] Protection Improved Light Armor Plating Weapon Blade Saw Energy Gun Shock Rifle Energy Cannon Heavy Plasma Cannon Ballistic Gun Light Assault Rifle Ballistic Cannon Bore Cannon Special Weapon Remote Datajack Impact Weapon Flail Slashing Weapon Blade Saw Piercing Weapon Heavy Pick Build | -11 -10 -9 -9 -9 -8 -8 -7 -7 -6 -6 ------- Run | Yrd Mat Mat Min Exi Min Mat Fac Gar Fac Gar Slots Evolved 8 | . . 2 . . . 2 2 . 2 . Power 1 | . . . . . . . 1 . . . Propulsion 4 | . . 2 . . . 2 . . . . Utility 2 | . . . . . . . 1 . 1 . Weapon 1 | . . . . . . . . . 1 . Parts Attached 124 | 5 5 5 2 4 . 9 23 50 13 8 Power 26 | 1 1 . . 1 . 2 10 9 2 . Engine 16 | 1 1 . . 1 . 1 7 4 1 . Core 10 | . . . . . . 1 3 5 1 . Reactor . | . . . . . . . . . . . Propulsion 40 | 2 3 3 . . . 4 8 18 2 . Treads . | . . . . . . . . . . . Leg 8 | . . . . . . . . 8 . . Wheel 2 | 2 . . . . . . . . . . Hover 2 | . . . . . . . 1 1 . . Flight 28 | . 3 3 . . . 4 7 9 2 . Utility 28 | . . 2 . 2 . 1 4 14 5 . Device 18 | . . . . 1 . 1 3 10 3 . Storage 2 | . . . . . . . . 1 1 . Processor 2 | . . 1 . 1 . . . . . . Hackware 3 | . . . . . . . 1 1 1 . Protection 3 | . . 1 . . . . . 2 . . Artifact . | . . . . . . . . . . . Weapon 30 | 2 1 . 2 1 . 2 1 9 4 8 Energy Gun 4 | . . . . . . . . . . 4 Energy Cannon 1 | . . . . . . . . 1 . . Ballistic Gun 9 | 2 1 . . 1 . 1 . 1 1 2 Ballistic Cannon 1 | . . . . . . . . 1 . . Launcher . | . . . . . . . . . . . Special Weapon 1 | . . . . . . . . . . 1 Impact Weapon 3 | . . . 2 . . 1 . . . . Slashing Weapon 10 | . . . . . . . 1 6 2 1 Piercing Weapon 1 | . . . . . . . . . 1 . Special Melee Weapon . | . . . . . . . . . . . Unidentified Prototypes 4 | . . . . 3 . 1 . . . . Corrupted Parts 3 | . . . . . . 3 . . . . System Corruption 6 | . . . . . . 6 . . . . Parts Lost 35 | . . . . . . 2 10 8 . 15 Power 5 | . . . . . . . 2 1 . 2 Propulsion 15 | . . . . . . 2 5 2 . 6 Utility 9 | . . . . . . . 3 3 . 3 Weapon 6 | . . . . . . . . 2 . 4 Highest Loss Streak 11 | . . . . . . 2 8 2 . 11 To Critical Strikes . | . . . . . . . . . . . Average Slot Usage (%) 80 | . 70 92 100 94 88 84 76 77 90 55 Engine 7 | . 14 11 11 10 11 8 5 4 12 5 Core 4 | . . . . . . . . 8 . . Leg 6 | . . . . . . . . 14 . . Wheel 1 | . 14 . . . . . . . . . Flight 28 | . 14 42 44 44 44 50 40 19 40 21 Device 10 | . . . . . . . 12 14 17 7 Processor 4 | . . 8 11 15 22 15 7 1 . . Protection 2 | . . 8 11 6 . . . 1 6 4 Energy Cannon 1 | . . . . . . . . 2 . . Ballistic Gun 4 | . 27 22 3 4 11 7 6 . . 1 Ballistic Cannon 1 | . . . . . . . . 2 . . Impact Weapon 1 | . . . 18 13 . 1 . . . . Slashing Weapon 3 | . . . . . . . . 4 12 4 Naked Turns 17 | . . . . . . . . . . 17 Heaviest Build 42 | 6 6 8 10 13 13 18 21 42 33 28 Greatest Support 108 | 26 26 16 16 16 16 24 25 108 32 32 Greatest Overweight (x) 4 | . . . . . . . 4 2 1 . Average Overweight (x) . | . . . . . . . . . . . Largest Inventory Capacity 8 | 5 5 5 5 5 5 5 5 5 8 5 Average Capacity 5 | 5 5 5 5 5 5 5 5 5 5 5 Most Carried 5 | 4 5 4 4 5 3 5 5 5 5 5 Average Carried 3 | 1 3 2 2 2 3 2 4 3 3 3 Final Capacity 5 | 5 5 5 5 5 5 5 5 5 5 5 Final Carried 5 | 4 5 2 2 3 3 3 5 4 4 2 Class Distribution -------------------- 33% | Scavenger-Sprinter 26% | Scavenger-Mutant 22% | Sprinter 16% | Mutant Dominant Class ---------------- Mutant | -10/Materials Sprinter | -9/Materials Sprinter | -9/Mines Sprinter | -9/Exiles Sprinter | -8/Mines Sprinter | -8/Materials Scavenger-Mutant | -7/Factory Scavenger-Sprinter | -7/Garrison Scavenger-Sprinter | -6/Factory Scavenger-Sprinter | -6/Garrison Resources | -11 -10 -9 -9 -9 -8 -8 -7 -7 -6 -6 ----------- Run | Yrd Mat Mat Min Exi Min Mat Fac Gar Fac Gar Matter Collected 1429 | 265 31 71 35 . . 60 177 650 49 91 Remotely . | . . . . . . . . . . . Salvage Created 862 | 130 46 . . . . 115 120 269 49 133 Parts 73 | 10 9 . . . . 6 15 19 2 12 Haulers Intercepted . | . . . . . . . . . . . Recyclers Shooed . | . . . . . . . . . . . Parts Field Recycled . | . . . . . . . . . . . Retrieved Matter . | . . . . . . . . . . . Parts Self-Destructed . | . . . . . . . . . . . Prevented . | . . . . . . . . . . . Kills | -11 -10 -9 -9 -9 -8 -8 -7 -7 -6 -6 ------- Run | Yrd Mat Mat Min Exi Min Mat Fac Gar Fac Gar Combat Hostiles Destroyed 22 | . 3 . . . . 4 2 10 . 3 Melee 4 | . . . . . . 2 . 2 . . Guns 13 | . 3 . . . . 2 2 3 . 3 Cannons 5 | . . . . . . . . 5 . . Classes Destroyed 11 | 2 1 . . . . 2 4 1 . 1 Worker 1 | . . . . . . . 1 . . . Tunneler 3 | 3 . . . . . . . . . . Recycler 1 | 1 . . . . . . . . . . Operator 1 | . . . . . . . 1 . . . Drone 1 | . . . . . . . 1 . . . Watcher 3 | . . . . . . . 1 . 2 . Swarmer 7 | . 3 . . . . . . 4 . . Cutter 8 | . . . . . . 3 2 3 . . Saboteur 1 | . . . . . . . . 1 . . Sentry 4 | . . . . . . 1 . 2 . 1 Programmer 2 | . . . . . . . . . . 2 Best Kill Streak 5 | 3 3 . . . . 4 5 5 1 1 Combat Bots Only 5 | . 3 . . . . 4 2 5 . 1 Max Kills in Single Turn 1 | 1 1 . . . . 1 1 1 1 1 Gunslinging . | . . . . . . . . . . . Exploded . | . . . . . . . . . . . Melee 1 | . . . . . . 1 . 1 . . Uniques/NPCs Destroyed . | . . . . . . . . . . . Combat | -11 -10 -9 -9 -9 -8 -8 -7 -7 -6 -6 -------- Run | Yrd Mat Mat Min Exi Min Mat Fac Gar Fac Gar Hostile Shots Fired 664 | . 21 30 . . 4 31 107 231 7 233 Missed 292 | . 6 19 . . 2 14 49 122 6 74 Damage Taken 4563 | . 138 106 . . 34 369 1081 1173 17 1645 Core 1638 | . 29 . . . 11 148 348 252 . 850 Absorbed by Shields 151 | . . . . . . . . 110 . 41 Ignored by Resistances 26 | . . . . . . . . 26 . . Core Remaining (%) 74 | 100 88 . . . 97 73 . 14 . . Volleys Fired 50 | 9 7 3 . . . . . 19 . 12 Largest 2 | 2 2 2 . . . . . 2 . 2 Hottest 147 | 40 40 40 . . . . . 147 . 108 Shots Fired 137 | 18 14 6 . . 1 8 26 43 . 21 Gun 102 | 18 14 6 . . 1 8 26 10 . 19 Cannon 33 | . . . . . . . . 33 . . Launcher . | . . . . . . . . . . . Special 2 | . . . . . . . . . . 2 Kinetic 106 | 18 14 6 . . 1 8 26 24 . 9 Thermal 24 | . . . . . . . . 19 . 5 Explosive . | . . . . . . . . . . . Electromagnetic 5 | . . . . . . . . . . 5 Robot Hit Streak 12 | 7 3 3 . . 1 4 11 4 . 12 Robot Miss Streak 5 | 3 2 2 . . . 2 4 5 . 2 Penetration Max . | . . . . . . . . . . . Secondary Targets 1 | . 1 . . . . . . . . . Max Gunslinging Chain 1 | . 1 . . . . . . . . . Autonomous 51 | . . . . . 1 8 26 10 . 6 Shots Hit Robots 96 | 11 8 3 . . 1 12 18 14 8 21 Core Hits 43 | 4 6 1 . . . 2 8 9 3 10 Critical Kills . | . . . . . . . . . . . Critical Parts Destroyed 1 | . . . . . . 1 . . . . Critical Strikes 5 | . . . . . . 1 . . 3 1 Smash 1 | . . . . . . 1 . . . . Sever 4 | . . . . . . . . . 3 1 Melee Attacks 63 | . . . . . . 8 2 33 17 3 Impact 8 | . . . . . . 8 . . . . Slashing 55 | . . . . . . . 2 33 17 3 Piercing . | . . . . . . . . . . . Sneak Attacks 3 | . . . . . . . . 3 . . Combat Hostiles 3 | . . . . . . . . 3 . . Follow-up Attacks 3 | . . . . . . . . . 3 . Damage Inflicted 2369 | 121 73 23 . . 24 455 588 453 166 466 Guns 1616 | 121 73 23 . . 24 206 588 135 . 446 Cannons 236 | . . . . . . . . 236 . . Explosions . | . . . . . . . . . . . Melee 517 | . . . . . . 249 . 82 166 20 Ramming . | . . . . . . . . . . . Kinetic 1444 | 121 73 23 . . 24 206 588 148 . 261 Thermal 357 | . . . . . . . . 223 . 134 Explosive . | . . . . . . . . . . . Electromagnetic 51 | . . . . . . . . . . 51 Impact 249 | . . . . . . 249 . . . . Slashing 268 | . . . . . . . . 82 166 20 Piercing . | . . . . . . . . . . . Highest Corruption 6 | . . . . . . 6 2 2 . 6 Average Corruption 2 | . . . . . . 2 1 1 . 3 Corruption Purged 3 | . . . . . . . . 3 . . Corruption Blocked . | . . . . . . . . . . . Effects 5 | . . . . . . . 1 1 . 3 Matter Fused 2 | . . . . . . . . . . 2 Heat Flow Errors 1 | . . . . . . . . 1 . . Energy Discharges 1 | . . . . . . . . . . 1 Data Loss (minor) 1 | . . . . . . . 1 . . . Overload Shots . | . . . . . . . . . . . Overflow Damage 124 | . . . . . . 111 . 6 7 . Projectiles 6 | . . . . . . . . 6 . . Explosions . | . . . . . . . . . . . Melee 118 | . . . . . . 111 . . 7 . Knockbacks 3 | . . . . . . 2 . 1 . . Impact 1 | . . . . . . 1 . . . . Kinetic 1 | . . . . . . . . 1 . . Secondary 1 | . . . . . . 1 . . . . Self-Inflicted Damage . | . . . . . . . . . . . Shots . | . . . . . . . . . . . Rammed . | . . . . . . . . . . . Targets Rammed . | . . . . . . . . . . . Kicked . | . . . . . . . . . . . Crushed . | . . . . . . . . . . . Highest Temperature 509 | . 6 16 . . . 45 100 509 . 24 Average Temperature 114 | . 4 7 . . . 9 33 138 . 13 Received Heat Transfer 844 | . 30 21 . . . 72 264 208 9 240 Effects 6 | . . . . . . . . 6 . . Shutdowns 3 | . . . . . . . . 3 . . Energy Bleed 2 | . . . . . . . . 2 . . Interference 1 | . . . . . . . . 1 . . Siege Activations . | . . . . . . . . . . . Robots Corrupted . | . . . . . . . . . . . Combat Hostiles . | . . . . . . . . . . . Parts Fried 2 | . . . . . . 2 . . . . Impact Corruptions 5 | . . . . . . 5 . . . . Robots Melted . | . . . . . . . . . . . Combat Hostiles . | . . . . . . . . . . . Parts Melted . | . . . . . . . . . . . Heat Transferred 625 | . . . . . . . . 350 . 275 Parts Sabotaged 9 | . . . . . . . . 9 . . Parts Stolen . | . . . . . . . . . . . Parts Stripped . | . . . . . . . . . . . Power Chain Reactions . | . . . . . . . . . . . Alert | -11 -10 -9 -9 -9 -8 -8 -7 -7 -6 -6 ------- Run | Yrd Mat Mat Min Exi Min Mat Fac Gar Fac Gar Peak Influence 1435 | 20 98 115 44 . 1 321 356 1435 952 722 Initial 753 | . 13 40 44 . . . 145 231 753 666 Average 507 | 7 58 71 44 . . 71 220 697 837 677 Maximum Alert Level 4 | . . . . . . 1 1 4 3 3 Low Security (%) 27 | 100 100 100 100 . 100 87 46 . . . Level 1 20 | . . . . . . 12 53 25 . . Level 2 17 | . . . . . . . . 28 . 66 Level 3 26 | . . . . . . . . 29 100 33 Level 4 8 | . . . . . . . . 16 . . Level 5 . | . . . . . . . . . . . High Security . | . . . . . . . . . . . Max Security . | . . . . . . . . . . . Squads Dispatched 12 | . 1 2 . . . 4 3 . 2 . Investigation 3 | . . 1 . . . 1 . . 1 . Extermination 1 | . . . . . . . 1 . . . Reinforcement 8 | . 1 1 . . . 3 2 . 1 . Assault . | . . . . . . . . . . . Garrison . | . . . . . . . . . . . Intercept . | . . . . . . . . . . . Searches Triggered . | . . . . . . . . . . . Construction Impeded . | . . . . . . . . . . . Haulers Reinforced . | . . . . . . . . . . . Active Scanning Responses . | . . . . . . . . . . . Cargo Convoy Interrupts . | . . . . . . . . . . . Stealth | -11 -10 -9 -9 -9 -8 -8 -7 -7 -6 -6 --------- Run | Yrd Mat Mat Min Exi Min Mat Fac Gar Fac Gar Distress Signals 3 | . . 1 . . . 1 . . 1 . Communications Jammed . | . . . . . . . . . . . Distress Signals . | . . . . . . . . . . . Times Spotted 136 | . 8 15 2 . 1 22 25 42 15 6 Peak Tracking Total 14 | . 4 14 2 . 2 14 10 8 9 5 Tactical Retreats 18 | . . 1 . . . 3 5 5 4 . Traps | -11 -10 -9 -9 -9 -8 -8 -7 -7 -6 -6 ------- Run | Yrd Mat Mat Min Exi Min Mat Fac Gar Fac Gar Traps Triggered 17 | . . 1 . . . 2 1 10 1 2 Indirectly . | . . . . . . . . . . . Trap Hack Attempts . | . . . . . . . . . . . Triggered . | . . . . . . . . . . . Disarmed . | . . . . . . . . . . . Reprogrammed . | . . . . . . . . . . . Reused 1 | . . . . . . . . 1 . . Traps Extracted . | . . . . . . . . . . . Installed 1 | . . . . . . . . 1 . . Triggered 1 | . . . . . . . . 1 . . Most Traps Carried 1 | . . . . . . . . 1 . . Machines | -11 -10 -9 -9 -9 -8 -8 -7 -7 -6 -6 ---------- Run | Yrd Mat Mat Min Exi Min Mat Fac Gar Fac Gar Machines Disabled 8 | . . . . . . 1 2 4 . 1 Max in Single Turn 1 | . . . . . . 1 1 1 . 1 Garrison Relay 1 | . . . . . . . . 1 . . Machines Repaired . | . . . . . . . . . . . Machines Dismantled . | . . . . . . . . . . . Machines Sabotaged . | . . . . . . . . . . . Overloaded Fab Kills . | . . . . . . . . . . . Hacking | -11 -10 -9 -9 -9 -8 -8 -7 -7 -6 -6 --------- Run | Yrd Mat Mat Min Exi Min Mat Fac Gar Fac Gar Machines Accessed 5 | . . . . . . . 1 2 2 . Terminals 3 | . . . . . . . . 2 1 . Fabricators . | . . . . . . . . . . . Repair Stations . | . . . . . . . . . . . Recycling Units . | . . . . . . . . . . . Scanalyzers . | . . . . . . . . . . . Garrison Access 2 | . . . . . . . 1 . 1 . Total Hacks 12 | . . . . . . . 1 4 7 . Successful 6 | . . . . . . . 1 2 3 . Failed 6 | . . . . . . . . 2 4 . Catastrophic 2 | . . . . . . . . . 2 . Database Lockouts . | . . . . . . . . . . . Manual 6 | . . . . 2 . . . . 4 . Terminals 9 | . . . . . . . . 4 5 . Fabricators . | . . . . . . . . . . . Repair Stations . | . . . . . . . . . . . Recycling Units . | . . . . . . . . . . . Scanalyzers . | . . . . . . . . . . . Garrison Access 3 | . . . . . . . 1 . 2 . Terminal Hacks 3 | . . . . . . . . 2 1 . Open Door 1 | . . . . . . . . 1 . . Emergency Access Points 1 | . . . . . . . . 1 . . Zone Layout 1 | . . . . . . . . . 1 . Fabricator Hacks . | . . . . . . . . . . . Repair Station Hacks . | . . . . . . . . . . . Recycling Unit Hacks . | . . . . . . . . . . . Scanalyzer . | . . . . . . . . . . . Garrison Access Hacks 3 | . . . . . . . 1 . 2 . Unlock Access 2 | . . . . . . . 1 . 1 . Coupler Status 1 | . . . . . . . . . 1 . Unauthorized Hacks . | . . . . . . . . . . . Terminals . | . . . . . . . . . . . Fabricators . | . . . . . . . . . . . Repair Stations . | . . . . . . . . . . . Recycling Units . | . . . . . . . . . . . Scanalyzers . | . . . . . . . . . . . Garrison Access . | . . . . . . . . . . . Data Cores Recovered 1 | . . . . . . . 1 . . . Used . | . . . . . . . . . . . Hacking Detections 4 | . . . . . . . . 2 2 . Full Trace Events 1 | . . . . . . . . . 1 . Feedback Events . | . . . . . . . . . . . Feedback Blocked . | . . . . . . . . . . . Robot Schematics Acquired . | . . . . . . . . . . . Robots Built . | . . . . . . . . . . . Authchips . | . . . . . . . . . . . Time . | . . . . . . . . . . . Total Robot Build Rating . | . . . . . . . . . . . Part Schematics Acquired . | . . . . . . . . . . . Parts Built . | . . . . . . . . . . . Authchips . | . . . . . . . . . . . Time . | . . . . . . . . . . . Total Part Build Rating . | . . . . . . . . . . . Parts Repaired . | . . . . . . . . . . . Time . | . . . . . . . . . . . Parts Recycled . | . . . . . . . . . . . Recycled Matter . | . . . . . . . . . . . Retrieved Matter . | . . . . . . . . . . . Retrieved Components . | . . . . . . . . . . . Parts Scanalyzed . | . . . . . . . . . . . Part Schematics Acquired . | . . . . . . . . . . . Parts Damaged . | . . . . . . . . . . . Bothacking | -11 -10 -9 -9 -9 -8 -8 -7 -7 -6 -6 ------------ Run | Yrd Mat Mat Min Exi Min Mat Fac Gar Fac Gar Used RIF Installer 1 | . . . . . . . . 1 . . Robots Hacked . | . . . . . . . . . . . Non-combat . | . . . . . . . . . . . Combat . | . . . . . . . . . . . Robot Hacks Applied . | . . . . . . . . . . . Relay Couplers Released 4 | . . . . . . . . 4 . . Machine Destruction 4 | . . . . . . . . 4 . . Attached 1 | . . . . . . . . 1 . . Fabnet Peak Effective % . | . . . . . . . . . . . Robots Rewired . | . . . . . . . . . . . Allies Hacked . | . . . . . . . . . . . Hacks Repelled . | . . . . . . . . . . . Allies | -11 -10 -9 -9 -9 -8 -8 -7 -7 -6 -6 -------- Run | Yrd Mat Mat Min Exi Min Mat Fac Gar Fac Gar Total Allies 4 | . . . . . . . . 4 . . Largest Group 2 | . . . . . . . . 2 . . Highest-Rated Group 160 | . . . . . . . . 160 . . Highest-Rated Ally 80 | . . . . . . . . 80 . . Total Orders . | . . . . . . . . . . . Ally Attacks 37 | . . . . . . . . 37 . . Total Damage 942 | . . . . . . . . 942 . . Kills 9 | . . . . . . . . 9 . . Allies Corrupted . | . . . . . . . . . . . Allies Melted . | . . . . . . . . . . . Intel | -11 -10 -9 -9 -9 -8 -8 -7 -7 -6 -6 ------- Run | Yrd Mat Mat Min Exi Min Mat Fac Gar Fac Gar Robot Analysis Total . | . . . . . . . . . . . Derelict Logs Recovered . | . . . . . . . . . . . Drone Launches 1 | . . . . . . . 1 . . . Drone Recoveries . | . . . . . . . . . . . Exploration | -11 -10 -9 -9 -9 -8 -8 -7 -7 -6 -6 ------------- Run | Yrd Mat Mat Min Exi Min Mat Fac Gar Fac Gar Turns Passed 3279 | 82 266 80 62 313 8 171 364 1501 304 128 Spaces Moved 5740 | 49 446 210 196 1016 28 413 493 1843 979 67 Core 16 | 3 . . . . . . 1 7 . 5 Treads . | . . . . . . . . . . . Legs 410 | . . . . . . . . 410 . . Wheels 173 | 46 127 . . . . . . . . . Hover 66 | . . . . . . . . 66 . . Flight 5075 | . 319 210 196 1016 28 413 492 1360 979 62 Fastest Speed 20 | 50 37 29 29 29 29 22 20 20 20 21 Average Speed 37 | 87 52 29 29 29 29 26 48 47 20 24 Slowest Speed 250 | 90 90 31 29 29 29 29 250 190 100 50 Overloaded Moves 72 | . . . . . . . 63 9 . . Propulsion Burnouts . | . . . . . . . . . . . Robots Hopped 5 | . 1 . . . . . 4 . . . Cave-ins Triggered . | . . . . . . . . . . . Exploration Rate (%) 38 | 3 62 30 27 93 17 47 14 92 26 8 Regions Visited 10 Branch Regions 3 Pre-discovered Areas . | . . . . . . . . . . . Known Exits Taken 6 | . . 1 1 1 1 . 1 . 1 . Unknown Exits Taken 3 | 1 1 . . . . 1 . . . . Scrap Searched 1 | . . . 1 . . . . . . . Spaces Dug . | . . . . . . . . . . . Terrain Destroyed 20 | . . . . . 1 1 11 6 . 1 Melee . | . . . . . . . . . . . Projectile 20 | . . . . . 1 1 11 6 . 1 AOE . | . . . . . . . . . . . Terrain Rammed . | . . . . . . . . . . . Walls Destroyed . | . . . . . . . . . . . Machines Disabled . | . . . . . . . . . . . Actions | -11 -10 -9 -9 -9 -8 -8 -7 -7 -6 -6 --------- Run | Yrd Mat Mat Min Exi Min Mat Fac Gar Fac Gar Total 6726 | 71 470 224 201 1036 27 462 615 2397 1062 161 Wait 418 | . . . . 6 . 20 72 281 11 28 Move 5723 | 48 443 209 195 1015 27 412 486 1842 979 67 Hop 4 | . 1 . . . . . 3 . . . Pick Up 101 | 9 7 4 2 5 . 8 14 33 13 6 Fast Attach 18 | . . . . . . . 6 11 . 1 Attach 99 | 5 4 5 2 4 . 9 17 35 11 7 Detach 15 | . . . . 1 . 1 4 5 3 1 Swap 7 | . 1 . . . . . . 4 2 . Drop 73 | . 7 3 2 5 . 4 11 23 11 7 Fire 50 | 9 7 3 . . . . . 19 . 12 Melee 57 | . . . . . . 8 2 30 14 3 Ram . | . . . . . . . . . . . Kick . | . . . . . . . . . . . Crush . | . . . . . . . . . . . Escape Stasis 159 | . . . . . . . . 112 18 29 Rewire 1 | . . . . . . . . 1 . . Trap 1 | . . . . . . . . 1 . . Miscellaneous . | . . . . . . . . . . . Route ------- -11/Scrapyard -10/Materials (discovered 3 exits: [*Mat x2] / [*Min]) -9/Materials -9/Mines -9/Exiles (discovered 2 exits: *Min x2) -8/Mines -8/Materials (discovered 2 exits: *Fac x2) -7/Factory -7/Garrison (discovered 3 exits: *Fac x3) -6/Factory (discovered 2 exits: [*Low] / Gar) -6/Garrison History --------- Turn | Location | Event 2 | -11/Scrapyard | Met Revision 17 16 | -11/Scrapyard | Discovered new exit (range 16) 83 | -11/Scrapyard | Entered Materials 205 | -10/Materials | Discovered new exit (range 15) 258 | -10/Materials | Discovered new exit (range 11) 341 | -10/Materials | Build established: Mutant 344 | -10/Materials | Discovered new exit (range 9) 349 | -10/Materials | Entered another Materials area 349 | -9/Materials | Evolved 2 slots: Propulsion x2 405 | -9/Materials | Discovered new exit (range 13) 408 | -9/Materials | Identified exit to Mines 429 | -9/Materials | Entered Mines 487 | -9/Mines | Deemed a non-threat by the Exiles lab entrance 487 | -9/Mines | Discovered new exit (range 5) 488 | -9/Mines | Identified exit to Exiles 491 | -9/Mines | Entered Exiles 502 | -9/Exiles | Discovered new exit (range 14) 514 | -9/Exiles | Met 8R-AWN 521 | -9/Exiles | Met EX-HEX 538 | -9/Exiles | Met EX-DEC 561 | -9/Exiles | Discovered new exit (range 14) 576 | -9/Exiles | Identified exit to Mines 596 | -9/Exiles | Visited The Gauntlet 655 | -9/Exiles | Build established: Sprinter 657 | -9/Exiles | Met EX-BIN 663 | -9/Exiles | Aligned with FarCom system 663 | -9/Exiles | Given EX-Vault access code 678 | -9/Exiles | Opened EX-Vault 679 | -9/Exiles | Found Prototype Device 681 | -9/Exiles | Found Prototype Processor 682 | -9/Exiles | Identified Supersonic Drone Bay 684 | -9/Exiles | Identified 0b10 Alert Chip 686 | -9/Exiles | Found Prototype Ballistic Gun 688 | -9/Exiles | Identified AWS/Gauss 695 | -9/Exiles | Warned to stay clear of 0b10 Research branches 804 | -9/Exiles | Stole three prototypes: 0b10 Alert Chip, Supersonic Drone Bay, AWS/Gauss 804 | -9/Exiles | Entered Mines 811 | -8/Mines | Discovered new exit (range 4) 812 | -8/Mines | Identified exit to Materials 812 | -8/Mines | Entered Materials 812 | -8/Materials | Evolved 2 slots: Propulsion x2 932 | -8/Materials | Discovered new exit (range 14) 982 | -8/Materials | Discovered new exit (range 10) 983 | -8/Materials | Entered Factory 983 | -7/Factory | Evolved 2 slots: Power x1, Utility x1 985 | -7/Factory | FarCom data flow suspended 1347 | -7/Factory | Identified exit to Garrison 1347 | -7/Factory | Entered Garrison 1347 | -7/Garrison | Warlord forces raided the area 1356 | -7/Garrison | Triggered checkpoint 1378 | -7/Garrison | Lost 8 parts (1p5n2u) 1390 | -7/Garrison | Triggered checkpoint 1408 | -7/Garrison | Triggered checkpoint 1415 | -7/Garrison | Core integrity fell below 50% 1507 | -7/Garrison | Spotted B-75 Beast 1508 | -7/Garrison | Spotted B-75 Beast 1570 | -7/Garrison | Lost 3 allies 1574 | -7/Garrison | Triggered checkpoint 1653 | -7/Garrison | Warlord forces retreated 1658 | -7/Garrison | Found embedded Infiltrators 1812 | -7/Garrison | Discovered new exit (range 10) 1840 | -7/Garrison | Triggered checkpoint 1900 | -7/Garrison | Build established: Scavenger-Mutant 2123 | -7/Garrison | Discovered new exit (range 15) 2147 | -7/Garrison | Garrison Relay disabled 2225 | -7/Garrison | Installed Relay Interface Framework 2301 | -7/Garrison | Discovered new exit (range 10) 2308 | -7/Garrison | Triggered checkpoint 2330 | -7/Garrison | Core integrity fell below 20% 2472 | -7/Garrison | Build established: Scavenger-Sprinter 2608 | -7/Garrison | Rescued a captive Derelict 2608 | -7/Garrison | Rescued a captive Derelict 2741 | -7/Garrison | Triggered checkpoint 2848 | -7/Garrison | Entered Factory 2848 | -6/Factory | Evolved 2 slots: Utility x1, Weapon x1 2950 | -6/Factory | Discovered new exit (range 13) 3152 | -6/Factory | Identified exit to Garrison 3152 | -6/Factory | Entered Garrison 3188 | -6/Garrison | Triggered checkpoint 3226 | -6/Garrison | Lost 4 parts (1p2n1w) 3260 | -6/Garrison | Core integrity fell below 50% 3273 | -6/Garrison | Core integrity fell below 20% 3280 | -6/Garrison | Destroyed by P-60 Hacker with Shock Rifle Last Messages --------------- No effect. Lgt. Angular Momentum Engine destroyed. Cesium-ion Thruster destroyed. Dropped Remote Datajack. Dropped Shock Rifle. P-60 Hacker resets P-60 Hacker, system corruption cleaned. Nuclear Pulse Thruster destroyed. System corrupted: Energy discharge (-5). P-60 Hacker destroyed. Imp. Light Armor Plating destroyed. Imp. Heat Sink destroyed. Discarded Imp. Hacking Suite. Flak Gun destroyed. Dropped Gatling Laser. Cesium-ion Thruster destroyed. Acquired Gatling Laser. Dropped Gatling Laser. Acquired Shock Rifle. Shock Rifle destroyed. Map ----- +----------------------------------------------------+ | ?????????????????????????????????????????????????? | | ?????????????????? ?????????????????????????????? | | ?????????????????? ?????????????????????????????? | | ?????????????????? ?????????????????????????????? | | ?????????????????# ?????????????????????????????? | | ?????????????????# ?????????????????????????????? | | ?????????????????# ?????????????????????????????? | | ?????????????????# #????????????????????????????? | | ????????????????? ????????????????????????????? | | ????????????????? ???? ???????????????????????? | | ?????????????????# #????;???????????????????????? | | ?????????????????# #???? ???????????????????????? | | ?????????????????# #???? ???????????????????????? | | ?????????????????# #???? ???????????????????????? | | ?????????????????# #####;#??????????????????????? | | ?????????????????# #??????????????????????? | | ?????????????????# ##### #??????????????????????? | | ????????????????## #???# #??????????????????????? | | ????????????????# #???# #??????????????????????? | | ????????????????## #???# #??????????????????????? | | ????????########## #???# #??###?????????????????? | | ????????# #???#!##!!!#?????????????????? | | ????????# #???+=% #?????????????????? | | ????????# #########???#/##!!!#?????????????????? | | ????????# #???????????#Y#??###?????????????????? | | ????????#####???????????#@#??????????????????????? | | ????????????????????????# #??????????????????????? | | ????????????????????????#[#??????????????????????? | | ???????????????########?#%#??????????????????????? | | ???????????????? + #?#p#??????????????????????? | | ????????????????### ###=#??????????????????????? | | ????????????????# ! !###/####???????????????? | | ????????????????# =; #???????????????? | | ????????????????#############/####???????????????? | | ?????????????????????????????????????????????????? | | ?????????????????????????????????????????????????? | | ?????????????????????????????????????????????????? | | ?????????????????????????????????????????????????? | | ?????????????????????????????????????????????????? | | ?????????????????????????????????????????????????? | | ?????????????????????????????????????????????????? | | ?????????????????????????????????????????????????? | | ?????????????????????????????????????????????????? | | ?????????????????????????????????????????????????? | | | | | | | | | | | | | +----------------------------------------------------+ Best States ------------- Heat Dissipation 79 Energy Generation 31 Energy Capacity 520 Matter Stores 300 Matter Capacity 300 Sight Range 16 Terrain Scan Density 10 Armor Coverage 225 Resistance: TH 25 Weapon Cycling 30 Melee Speed Boost 20 Evasion (%) 72 Force Boost 20 Offensive Hacking 12 Relay Coupler Types 1 Relay Coupler Value 25 Item Schematics ----------------- None Robot Schematics ------------------ None Fabricated ------------ Nothing Alien Tech Used ----------------- None Achievements -------------- Backstab Can't Catch Me Tourist Challenges ------------ None Game ------ Seed RestorationFissionDetonator Manual? 0 Play Time 01:38:09 Cumulative 9.6 hours Start 2024.04.10 @ 21:16:13 End 2024.04.10 @ 23:19:06 Sessions 1 Manual Loads 0 Difficulty Rogue Special Mode None Game No. 17 Rogue 17 Adventurer 0 Explorer 0 Win Type - Total 0 Types 0/0/0/0/0/0/0/0/0 Lore% 8 Gallery% 16 Achievement% 14 Wizard Run 0 Options --------- Layout 1 ASCII 0 Keyboard 0 Movement Mouse Keybinds 0 Fullscreen 1 Font 32/SmallcapsGlow Map View 50x35 Zoom Use 0% Tactical HUD 0 Map Filters NONE Filters NONE Steam 1 RUN: 897f4542-cf89-4503-998b-92988f1810a2